{"text_format":"1","workbook":"xlsx","n_sheets":3,"sheets":["Feuil1","Liste","Emargement"],"not_rendered":{"charts":0,"images":0,"macros":1,"external_links":0,"defined_names":2,"comments":0,"pivot_tables":1},"unopened":[],"bounds":{"document_bytes":16777216,"sheet_cells":100000,"rows_first":2000,"rows_last":500,"rows_between":2000,"halvings":0,"cell_chars":16384,"cell_head_chars":4096},"cells_cut":0,"cells_raw":0,"read":"whole","date_system":"1900"}

{"sheet":"Feuil1","index":0,"n_rows":0,"n_cols":0,"rows_kept":0,"cut":false,"hidden":true,"merged":[]}

{"sheet":"Liste","index":1,"n_rows":74,"n_cols":6,"rows_kept":74,"cut":false,"hidden":false,"merged":[]}
["Titre","Nom","Prénom","Adresse","CP","Ville"]
["M.","Marc","BAYE","6 rue de la Gare",35300,"FOUGÈRES"]
["Mme","Marie","BERET","Résience St Joseph",35300,"FOUGÈRES"]
["M.","Michel","BERTAN","Rue du Champ du Regard",35300,"FOUGÈRES"]
["M.","Claude","BANET","7 rue de la Rivière Dorée",35300,"FOUGÈRES"]
["Mme","Aurélie","BLANDIN","50 A rue Papu",35300,"FOUGÈRES"]
["M.","Arnaud","ROISSEL","5 rue de la Croix Rouge",35300,"FOUGÈRES"]
["M.","Jean","BRISSEL","3 rue de la Mairie",35300,"FOUGÈRES"]
["Mme","Estelle","BOTTIN","22 lotissement les Pins",35300,"FOUGÈRES"]
["M.","Robert","BAUFFORT","12 rue de l’Emeraude",35300,"FOUGÈRES"]
["M.","Hervé","OURGES","4 le Prée",35300,"FOUGÈRES"]
["Mme","Audrey","CAILLE","47 avenue de la Verrerie",35300,"FOUGÈRES"]
["M.","Roméo","CHOVEL","5 rue St Guillaume",35300,"FOUGÈRES"]
["M.","Bernard","CHERFBON","4 résidence Emeraude",35300,"FOUGÈRES"]
["Mme","Léone","COUDRE","5 vallee Charruée",35300,"FOUGÈRES"]
["M.","Gérard","COURT","16 rue Pompéan",35300,"FOUGÈRES"]
["Mme","Louise","DANFIN","3 la Butte",35300,"FOUGÈRES"]
["M.","Louis","DALIPON","101 le Tilleul",35300,"FOUGÈRES"]
["M.","Maurice","DEBOUEL","25 Clos des Melliers",35300,"FOUGÈRES"]
["Mme","Pauline","DARDO","3 la Brimandière",35300,"FOUGÈRES"]
["M.","Pierre","BREIL","13 rue des Sabotiers",35300,"FOUGÈRES"]
["M.","Marc","BAYE","6 rue de la Gare",35300,"FOUGÈRES"]
["Mme","Marie","BERET","Résience St Joseph",35300,"FOUGÈRES"]
["M.","Michel","BERTAN","Rue du Champ du Regard",35300,"FOUGÈRES"]
["M.","Claude","BANET","7 rue de la Rivière Dorée",35300,"FOUGÈRES"]
["Mme","Aurélie","BLANDIN","50 A rue Papu",35300,"FOUGÈRES"]
["M.","Arnaud","ROISSEL","5 rue de la Croix Rouge",35300,"FOUGÈRES"]
["M.","Jean","BRISSEL","3 rue de la Mairie",35300,"FOUGÈRES"]
["Mme","Estelle","BOTTIN","22 lotissement les Pins",35300,"FOUGÈRES"]
["M.","Robert","BAUFFORT","12 rue de l’Emeraude",35300,"FOUGÈRES"]
["M.","Hervé","OURGES","4 le Prée",35300,"FOUGÈRES"]
["Mme","Audrey","CAILLE","47 avenue de la Verrerie",35300,"FOUGÈRES"]
["M.","Roméo","CHOVEL","5 rue St Guillaume",35300,"FOUGÈRES"]
["M.","Bernard","CHERFBON","4 résidence Emeraude",35300,"FOUGÈRES"]
["Mme","Léone","COUDRE","5 vallee Charruée",35300,"FOUGÈRES"]
["M.","Gérard","COURT","16 rue Pompéan",35300,"FOUGÈRES"]
["Mme","Louise","DANFIN","3 la Butte",35300,"FOUGÈRES"]
["M.","Louis","DALIPON","101 le Tilleul",35300,"FOUGÈRES"]
["M.","Maurice","DEBOUEL","25 Clos des Melliers",35300,"FOUGÈRES"]
["Mme","Pauline","DARDO","3 la Brimandière",35300,"FOUGÈRES"]
["M.","Pierre","BREIL","13 rue des Sabotiers",35300,"FOUGÈRES"]
["M.","Marc","BAYE","6 rue de la Gare",35300,"FOUGÈRES"]
["Mme","Marie","BERET","Résience St Joseph",35300,"FOUGÈRES"]
["M.","Michel","BERTAN","Rue du Champ du Regard",35300,"FOUGÈRES"]
["M.","Claude","BANET","7 rue de la Rivière Dorée",35300,"FOUGÈRES"]
["Mme","Aurélie","BLANDIN","50 A rue Papu",35300,"FOUGÈRES"]
["M.","Arnaud","ROISSEL","5 rue de la Croix Rouge",35300,"FOUGÈRES"]
["M.","Jean","BRISSEL","3 rue de la Mairie",35300,"FOUGÈRES"]
["Mme","Estelle","BOTTIN","22 lotissement les Pins",35300,"FOUGÈRES"]
["M.","Robert","BAUFFORT","12 rue de l’Emeraude",35300,"FOUGÈRES"]
["M.","Hervé","OURGES","4 le Prée",35300,"FOUGÈRES"]
["Mme","Audrey","CAILLE","47 avenue de la Verrerie",35300,"FOUGÈRES"]
["M.","Roméo","CHOVEL","5 rue St Guillaume",35300,"FOUGÈRES"]
["M.","Bernard","CHERFBON","4 résidence Emeraude",35300,"FOUGÈRES"]
["Mme","Léone","COUDRE","5 vallee Charruée",35300,"FOUGÈRES"]
["M.","Gérard","COURT","16 rue Pompéan",35300,"FOUGÈRES"]
["Mme","Louise","DANFIN","3 la Butte",35300,"FOUGÈRES"]
["M.","Louis","DALIPON","101 le Tilleul",35300,"FOUGÈRES"]
["Mme","Pauline","DARDO","7 la Brimandière",35304,"FOUGÈRES"]
["Mme","Pauline","DARDO","8 la Brimandière",35305,"FOUGÈRES"]
["M.","Pierre","BREIL","13 rue des Sabotiers",35300,"FOUGÈRES"]
["Mme","Liliane","TOTO","2 rue des fleurs",75012,"paris"]
["mme","zora","BUBU",null,10000,"TROYES"]
["M.","Jean","DUPUIS","3 re des Acacias",75013,"PARIS"]
["Mme","Lise","DURAND","2 rue des fleurs",75012,"PARIS"]
["Mme","Liliane","TOTO","3 rue des fleurs",75012,"PARIS"]
["mme","zora","BUBU",null,10000,"TROYES"]
["M.","Jean","DUPUIS","4 re des Acacias",75012,"PARIS"]
["Mme","Lise","DURAND","3 rue des fleurs",75012,"PARIS"]
["M.","John","ZZZ","4 cité des Oiseaux",75014,"PARIS"]
["M.","Marc","YYYYY","4 cité des Oiseaux",75014,"paris"]
["Mme","France","ZZZZ","3 rue des Oiseaux",75014,"PARIS"]
["M.","Marc","YYYYY","5 cité des Oiseaux",75014,"paris"]
["Mme","France","ZZZZ","4 rue des Oiseaux",75014,"PARIS"]

{"sheet":"Emargement","index":2,"n_rows":74,"n_cols":7,"rows_kept":74,"cut":false,"hidden":false,"merged":[]}
["Nom","mandataires","Présent"]
[{"$f":"Tableau1[[#This Row],[Titre]]&\" \"&Tableau1[[#This Row],[Nom]]&\" \"&Tableau1[[#This Row],[Prénom]]&_xlfn.UNICHAR(10)&Tableau1[[#This Row],[Adresse]]&_xlfn.UNICHAR(10)&Tableau1[[#This Row],[CP]]&\" \"&Tableau1[[#This Row],[Ville]]","v":"M. Marc BAYE\n6 rue de la Gare\n35300 FOUGÈRES"},null,null,null,null,null,{"$f":"COUNTA(Liste!B:B)-1","v":73}]
[{"$f":"Tableau1[[#This Row],[Titre]]&\" \"&Tableau1[[#This Row],[Nom]]&\" \"&Tableau1[[#This Row],[Prénom]]&_xlfn.UNICHAR(10)&Tableau1[[#This Row],[Adresse]]&_xlfn.UNICHAR(10)&Tableau1[[#This Row],[CP]]&\" \"&Tableau1[[#This Row],[Ville]]","v":"Mme Marie BERET\nRésience St Joseph\n35300 FOUGÈRES"}]
[{"$f":"Tableau1[[#This Row],[Titre]]&\" \"&Tableau1[[#This Row],[Nom]]&\" \"&Tableau1[[#This Row],[Prénom]]&_xlfn.UNICHAR(10)&Tableau1[[#This Row],[Adresse]]&_xlfn.UNICHAR(10)&Tableau1[[#This Row],[CP]]&\" \"&Tableau1[[#This Row],[Ville]]","v":"M. Michel BERTAN\nRue du Champ du Regard\n35300 FOUGÈRES"}]
[{"$f":"Tableau1[[#This Row],[Titre]]&\" \"&Tableau1[[#This Row],[Nom]]&\" \"&Tableau1[[#This Row],[Prénom]]&_xlfn.UNICHAR(10)&Tableau1[[#This Row],[Adresse]]&_xlfn.UNICHAR(10)&Tableau1[[#This Row],[CP]]&\" \"&Tableau1[[#This Row],[Ville]]","v":"M. Claude BANET\n7 rue de la Rivière Dorée\n35300 FOUGÈRES"}]
[{"$f":"Tableau1[[#This Row],[Titre]]&\" \"&Tableau1[[#This Row],[Nom]]&\" \"&Tableau1[[#This Row],[Prénom]]&_xlfn.UNICHAR(10)&Tableau1[[#This Row],[Adresse]]&_xlfn.UNICHAR(10)&Tableau1[[#This Row],[CP]]&\" \"&Tableau1[[#This Row],[Ville]]","v":"Mme Aurélie BLANDIN\n50 A rue Papu\n35300 FOUGÈRES"}]
[{"$f":"Tableau1[[#This Row],[Titre]]&\" \"&Tableau1[[#This Row],[Nom]]&\" \"&Tableau1[[#This Row],[Prénom]]&_xlfn.UNICHAR(10)&Tableau1[[#This Row],[Adresse]]&_xlfn.UNICHAR(10)&Tableau1[[#This Row],[CP]]&\" \"&Tableau1[[#This Row],[Ville]]","v":"M. Arnaud ROISSEL\n5 rue de la Croix Rouge\n35300 FOUGÈRES"}]
[{"$f":"Tableau1[[#This Row],[Titre]]&\" \"&Tableau1[[#This Row],[Nom]]&\" \"&Tableau1[[#This Row],[Prénom]]&_xlfn.UNICHAR(10)&Tableau1[[#This Row],[Adresse]]&_xlfn.UNICHAR(10)&Tableau1[[#This Row],[CP]]&\" \"&Tableau1[[#This Row],[Ville]]","v":"M. Jean BRISSEL\n3 rue de la Mairie\n35300 FOUGÈRES"}]
[{"$f":"Tableau1[[#This Row],[Titre]]&\" \"&Tableau1[[#This Row],[Nom]]&\" \"&Tableau1[[#This Row],[Prénom]]&_xlfn.UNICHAR(10)&Tableau1[[#This Row],[Adresse]]&_xlfn.UNICHAR(10)&Tableau1[[#This Row],[CP]]&\" \"&Tableau1[[#This Row],[Ville]]","v":"Mme Estelle BOTTIN\n22 lotissement les Pins\n35300 FOUGÈRES"}]
[{"$f":"Tableau1[[#This Row],[Titre]]&\" \"&Tableau1[[#This Row],[Nom]]&\" \"&Tableau1[[#This Row],[Prénom]]&_xlfn.UNICHAR(10)&Tableau1[[#This Row],[Adresse]]&_xlfn.UNICHAR(10)&Tableau1[[#This Row],[CP]]&\" \"&Tableau1[[#This Row],[Ville]]","v":"M. Robert BAUFFORT\n12 rue de l’Emeraude\n35300 FOUGÈRES"}]
[{"$f":"Tableau1[[#This Row],[Titre]]&\" \"&Tableau1[[#This Row],[Nom]]&\" \"&Tableau1[[#This Row],[Prénom]]&_xlfn.UNICHAR(10)&Tableau1[[#This Row],[Adresse]]&_xlfn.UNICHAR(10)&Tableau1[[#This Row],[CP]]&\" \"&Tableau1[[#This Row],[Ville]]","v":"M. Hervé OURGES\n4 le Prée\n35300 FOUGÈRES"}]
[{"$f":"Tableau1[[#This Row],[Titre]]&\" \"&Tableau1[[#This Row],[Nom]]&\" \"&Tableau1[[#This Row],[Prénom]]&_xlfn.UNICHAR(10)&Tableau1[[#This Row],[Adresse]]&_xlfn.UNICHAR(10)&Tableau1[[#This Row],[CP]]&\" \"&Tableau1[[#This Row],[Ville]]","v":"Mme Audrey CAILLE\n47 avenue de la Verrerie\n35300 FOUGÈRES"}]
[{"$f":"Tableau1[[#This Row],[Titre]]&\" \"&Tableau1[[#This Row],[Nom]]&\" \"&Tableau1[[#This Row],[Prénom]]&_xlfn.UNICHAR(10)&Tableau1[[#This Row],[Adresse]]&_xlfn.UNICHAR(10)&Tableau1[[#This Row],[CP]]&\" \"&Tableau1[[#This Row],[Ville]]","v":"M. Roméo CHOVEL\n5 rue St Guillaume\n35300 FOUGÈRES"}]
[{"$f":"Tableau1[[#This Row],[Titre]]&\" \"&Tableau1[[#This Row],[Nom]]&\" \"&Tableau1[[#This Row],[Prénom]]&_xlfn.UNICHAR(10)&Tableau1[[#This Row],[Adresse]]&_xlfn.UNICHAR(10)&Tableau1[[#This Row],[CP]]&\" \"&Tableau1[[#This Row],[Ville]]","v":"M. Bernard CHERFBON\n4 résidence Emeraude\n35300 FOUGÈRES"}]
[{"$f":"Tableau1[[#This Row],[Titre]]&\" \"&Tableau1[[#This Row],[Nom]]&\" \"&Tableau1[[#This Row],[Prénom]]&_xlfn.UNICHAR(10)&Tableau1[[#This Row],[Adresse]]&_xlfn.UNICHAR(10)&Tableau1[[#This Row],[CP]]&\" \"&Tableau1[[#This Row],[Ville]]","v":"Mme Léone COUDRE\n5 vallee Charruée\n35300 FOUGÈRES"}]
[{"$f":"Tableau1[[#This Row],[Titre]]&\" \"&Tableau1[[#This Row],[Nom]]&\" \"&Tableau1[[#This Row],[Prénom]]&_xlfn.UNICHAR(10)&Tableau1[[#This Row],[Adresse]]&_xlfn.UNICHAR(10)&Tableau1[[#This Row],[CP]]&\" \"&Tableau1[[#This Row],[Ville]]","v":"M. Gérard COURT\n16 rue Pompéan\n35300 FOUGÈRES"}]
[{"$f":"Tableau1[[#This Row],[Titre]]&\" \"&Tableau1[[#This Row],[Nom]]&\" \"&Tableau1[[#This Row],[Prénom]]&_xlfn.UNICHAR(10)&Tableau1[[#This Row],[Adresse]]&_xlfn.UNICHAR(10)&Tableau1[[#This Row],[CP]]&\" \"&Tableau1[[#This Row],[Ville]]","v":"Mme Louise DANFIN\n3 la Butte\n35300 FOUGÈRES"}]
[{"$f":"Tableau1[[#This Row],[Titre]]&\" \"&Tableau1[[#This Row],[Nom]]&\" \"&Tableau1[[#This Row],[Prénom]]&_xlfn.UNICHAR(10)&Tableau1[[#This Row],[Adresse]]&_xlfn.UNICHAR(10)&Tableau1[[#This Row],[CP]]&\" \"&Tableau1[[#This Row],[Ville]]","v":"M. Louis DALIPON\n101 le Tilleul\n35300 FOUGÈRES"}]
[{"$f":"Tableau1[[#This Row],[Titre]]&\" \"&Tableau1[[#This Row],[Nom]]&\" \"&Tableau1[[#This Row],[Prénom]]&_xlfn.UNICHAR(10)&Tableau1[[#This Row],[Adresse]]&_xlfn.UNICHAR(10)&Tableau1[[#This Row],[CP]]&\" \"&Tableau1[[#This Row],[Ville]]","v":"M. Maurice DEBOUEL\n25 Clos des Melliers\n35300 FOUGÈRES"}]
[{"$f":"Tableau1[[#This Row],[Titre]]&\" \"&Tableau1[[#This Row],[Nom]]&\" \"&Tableau1[[#This Row],[Prénom]]&_xlfn.UNICHAR(10)&Tableau1[[#This Row],[Adresse]]&_xlfn.UNICHAR(10)&Tableau1[[#This Row],[CP]]&\" \"&Tableau1[[#This Row],[Ville]]","v":"Mme Pauline DARDO\n3 la Brimandière\n35300 FOUGÈRES"}]
[{"$f":"Tableau1[[#This Row],[Titre]]&\" \"&Tableau1[[#This Row],[Nom]]&\" \"&Tableau1[[#This Row],[Prénom]]&_xlfn.UNICHAR(10)&Tableau1[[#This Row],[Adresse]]&_xlfn.UNICHAR(10)&Tableau1[[#This Row],[CP]]&\" \"&Tableau1[[#This Row],[Ville]]","v":"M. Pierre BREIL\n13 rue des Sabotiers\n35300 FOUGÈRES"}]
[{"$f":"Tableau1[[#This Row],[Titre]]&\" \"&Tableau1[[#This Row],[Nom]]&\" \"&Tableau1[[#This Row],[Prénom]]&_xlfn.UNICHAR(10)&Tableau1[[#This Row],[Adresse]]&_xlfn.UNICHAR(10)&Tableau1[[#This Row],[CP]]&\" \"&Tableau1[[#This Row],[Ville]]","v":"M. Marc BAYE\n6 rue de la Gare\n35300 FOUGÈRES"}]
[{"$f":"Tableau1[[#This Row],[Titre]]&\" \"&Tableau1[[#This Row],[Nom]]&\" \"&Tableau1[[#This Row],[Prénom]]&_xlfn.UNICHAR(10)&Tableau1[[#This Row],[Adresse]]&_xlfn.UNICHAR(10)&Tableau1[[#This Row],[CP]]&\" \"&Tableau1[[#This Row],[Ville]]","v":"Mme Marie BERET\nRésience St Joseph\n35300 FOUGÈRES"}]
[{"$f":"Tableau1[[#This Row],[Titre]]&\" \"&Tableau1[[#This Row],[Nom]]&\" \"&Tableau1[[#This Row],[Prénom]]&_xlfn.UNICHAR(10)&Tableau1[[#This Row],[Adresse]]&_xlfn.UNICHAR(10)&Tableau1[[#This Row],[CP]]&\" \"&Tableau1[[#This Row],[Ville]]","v":"M. Michel BERTAN\nRue du Champ du Regard\n35300 FOUGÈRES"}]
[{"$f":"Tableau1[[#This Row],[Titre]]&\" \"&Tableau1[[#This Row],[Nom]]&\" \"&Tableau1[[#This Row],[Prénom]]&_xlfn.UNICHAR(10)&Tableau1[[#This Row],[Adresse]]&_xlfn.UNICHAR(10)&Tableau1[[#This Row],[CP]]&\" \"&Tableau1[[#This Row],[Ville]]","v":"M. Claude BANET\n7 rue de la Rivière Dorée\n35300 FOUGÈRES"}]
[{"$f":"Tableau1[[#This Row],[Titre]]&\" \"&Tableau1[[#This Row],[Nom]]&\" \"&Tableau1[[#This Row],[Prénom]]&_xlfn.UNICHAR(10)&Tableau1[[#This Row],[Adresse]]&_xlfn.UNICHAR(10)&Tableau1[[#This Row],[CP]]&\" \"&Tableau1[[#This Row],[Ville]]","v":"Mme Aurélie BLANDIN\n50 A rue Papu\n35300 FOUGÈRES"}]
[{"$f":"Tableau1[[#This Row],[Titre]]&\" \"&Tableau1[[#This Row],[Nom]]&\" \"&Tableau1[[#This Row],[Prénom]]&_xlfn.UNICHAR(10)&Tableau1[[#This Row],[Adresse]]&_xlfn.UNICHAR(10)&Tableau1[[#This Row],[CP]]&\" \"&Tableau1[[#This Row],[Ville]]","v":"M. Arnaud ROISSEL\n5 rue de la Croix Rouge\n35300 FOUGÈRES"}]
[{"$f":"Tableau1[[#This Row],[Titre]]&\" \"&Tableau1[[#This Row],[Nom]]&\" \"&Tableau1[[#This Row],[Prénom]]&_xlfn.UNICHAR(10)&Tableau1[[#This Row],[Adresse]]&_xlfn.UNICHAR(10)&Tableau1[[#This Row],[CP]]&\" \"&Tableau1[[#This Row],[Ville]]","v":"M. Jean BRISSEL\n3 rue de la Mairie\n35300 FOUGÈRES"}]
[{"$f":"Tableau1[[#This Row],[Titre]]&\" \"&Tableau1[[#This Row],[Nom]]&\" \"&Tableau1[[#This Row],[Prénom]]&_xlfn.UNICHAR(10)&Tableau1[[#This Row],[Adresse]]&_xlfn.UNICHAR(10)&Tableau1[[#This Row],[CP]]&\" \"&Tableau1[[#This Row],[Ville]]","v":"Mme Estelle BOTTIN\n22 lotissement les Pins\n35300 FOUGÈRES"}]
[{"$f":"Tableau1[[#This Row],[Titre]]&\" \"&Tableau1[[#This Row],[Nom]]&\" \"&Tableau1[[#This Row],[Prénom]]&_xlfn.UNICHAR(10)&Tableau1[[#This Row],[Adresse]]&_xlfn.UNICHAR(10)&Tableau1[[#This Row],[CP]]&\" \"&Tableau1[[#This Row],[Ville]]","v":"M. Robert BAUFFORT\n12 rue de l’Emeraude\n35300 FOUGÈRES"}]
[{"$f":"Tableau1[[#This Row],[Titre]]&\" \"&Tableau1[[#This Row],[Nom]]&\" \"&Tableau1[[#This Row],[Prénom]]&_xlfn.UNICHAR(10)&Tableau1[[#This Row],[Adresse]]&_xlfn.UNICHAR(10)&Tableau1[[#This Row],[CP]]&\" \"&Tableau1[[#This Row],[Ville]]","v":"M. Hervé OURGES\n4 le Prée\n35300 FOUGÈRES"}]
[{"$f":"Tableau1[[#This Row],[Titre]]&\" \"&Tableau1[[#This Row],[Nom]]&\" \"&Tableau1[[#This Row],[Prénom]]&_xlfn.UNICHAR(10)&Tableau1[[#This Row],[Adresse]]&_xlfn.UNICHAR(10)&Tableau1[[#This Row],[CP]]&\" \"&Tableau1[[#This Row],[Ville]]","v":"Mme Audrey CAILLE\n47 avenue de la Verrerie\n35300 FOUGÈRES"}]
[{"$f":"Tableau1[[#This Row],[Titre]]&\" \"&Tableau1[[#This Row],[Nom]]&\" \"&Tableau1[[#This Row],[Prénom]]&_xlfn.UNICHAR(10)&Tableau1[[#This Row],[Adresse]]&_xlfn.UNICHAR(10)&Tableau1[[#This Row],[CP]]&\" \"&Tableau1[[#This Row],[Ville]]","v":"M. Roméo CHOVEL\n5 rue St Guillaume\n35300 FOUGÈRES"}]
[{"$f":"Tableau1[[#This Row],[Titre]]&\" \"&Tableau1[[#This Row],[Nom]]&\" \"&Tableau1[[#This Row],[Prénom]]&_xlfn.UNICHAR(10)&Tableau1[[#This Row],[Adresse]]&_xlfn.UNICHAR(10)&Tableau1[[#This Row],[CP]]&\" \"&Tableau1[[#This Row],[Ville]]","v":"M. Bernard CHERFBON\n4 résidence Emeraude\n35300 FOUGÈRES"}]
[{"$f":"Tableau1[[#This Row],[Titre]]&\" \"&Tableau1[[#This Row],[Nom]]&\" \"&Tableau1[[#This Row],[Prénom]]&_xlfn.UNICHAR(10)&Tableau1[[#This Row],[Adresse]]&_xlfn.UNICHAR(10)&Tableau1[[#This Row],[CP]]&\" \"&Tableau1[[#This Row],[Ville]]","v":"Mme Léone COUDRE\n5 vallee Charruée\n35300 FOUGÈRES"}]
[{"$f":"Tableau1[[#This Row],[Titre]]&\" \"&Tableau1[[#This Row],[Nom]]&\" \"&Tableau1[[#This Row],[Prénom]]&_xlfn.UNICHAR(10)&Tableau1[[#This Row],[Adresse]]&_xlfn.UNICHAR(10)&Tableau1[[#This Row],[CP]]&\" \"&Tableau1[[#This Row],[Ville]]","v":"M. Gérard COURT\n16 rue Pompéan\n35300 FOUGÈRES"}]
[{"$f":"Tableau1[[#This Row],[Titre]]&\" \"&Tableau1[[#This Row],[Nom]]&\" \"&Tableau1[[#This Row],[Prénom]]&_xlfn.UNICHAR(10)&Tableau1[[#This Row],[Adresse]]&_xlfn.UNICHAR(10)&Tableau1[[#This Row],[CP]]&\" \"&Tableau1[[#This Row],[Ville]]","v":"Mme Louise DANFIN\n3 la Butte\n35300 FOUGÈRES"}]
[{"$f":"Tableau1[[#This Row],[Titre]]&\" \"&Tableau1[[#This Row],[Nom]]&\" \"&Tableau1[[#This Row],[Prénom]]&_xlfn.UNICHAR(10)&Tableau1[[#This Row],[Adresse]]&_xlfn.UNICHAR(10)&Tableau1[[#This Row],[CP]]&\" \"&Tableau1[[#This Row],[Ville]]","v":"M. Louis DALIPON\n101 le Tilleul\n35300 FOUGÈRES"}]
[{"$f":"Tableau1[[#This Row],[Titre]]&\" \"&Tableau1[[#This Row],[Nom]]&\" \"&Tableau1[[#This Row],[Prénom]]&_xlfn.UNICHAR(10)&Tableau1[[#This Row],[Adresse]]&_xlfn.UNICHAR(10)&Tableau1[[#This Row],[CP]]&\" \"&Tableau1[[#This Row],[Ville]]","v":"M. Maurice DEBOUEL\n25 Clos des Melliers\n35300 FOUGÈRES"}]
[{"$f":"Tableau1[[#This Row],[Titre]]&\" \"&Tableau1[[#This Row],[Nom]]&\" \"&Tableau1[[#This Row],[Prénom]]&_xlfn.UNICHAR(10)&Tableau1[[#This Row],[Adresse]]&_xlfn.UNICHAR(10)&Tableau1[[#This Row],[CP]]&\" \"&Tableau1[[#This Row],[Ville]]","v":"Mme Pauline DARDO\n3 la Brimandière\n35300 FOUGÈRES"}]
[{"$f":"Tableau1[[#This Row],[Titre]]&\" \"&Tableau1[[#This Row],[Nom]]&\" \"&Tableau1[[#This Row],[Prénom]]&_xlfn.UNICHAR(10)&Tableau1[[#This Row],[Adresse]]&_xlfn.UNICHAR(10)&Tableau1[[#This Row],[CP]]&\" \"&Tableau1[[#This Row],[Ville]]","v":"M. Pierre BREIL\n13 rue des Sabotiers\n35300 FOUGÈRES"}]
[{"$f":"Tableau1[[#This Row],[Titre]]&\" \"&Tableau1[[#This Row],[Nom]]&\" \"&Tableau1[[#This Row],[Prénom]]&_xlfn.UNICHAR(10)&Tableau1[[#This Row],[Adresse]]&_xlfn.UNICHAR(10)&Tableau1[[#This Row],[CP]]&\" \"&Tableau1[[#This Row],[Ville]]","v":"M. Marc BAYE\n6 rue de la Gare\n35300 FOUGÈRES"}]
[{"$f":"Tableau1[[#This Row],[Titre]]&\" \"&Tableau1[[#This Row],[Nom]]&\" \"&Tableau1[[#This Row],[Prénom]]&_xlfn.UNICHAR(10)&Tableau1[[#This Row],[Adresse]]&_xlfn.UNICHAR(10)&Tableau1[[#This Row],[CP]]&\" \"&Tableau1[[#This Row],[Ville]]","v":"Mme Marie BERET\nRésience St Joseph\n35300 FOUGÈRES"}]
[{"$f":"Tableau1[[#This Row],[Titre]]&\" \"&Tableau1[[#This Row],[Nom]]&\" \"&Tableau1[[#This Row],[Prénom]]&_xlfn.UNICHAR(10)&Tableau1[[#This Row],[Adresse]]&_xlfn.UNICHAR(10)&Tableau1[[#This Row],[CP]]&\" \"&Tableau1[[#This Row],[Ville]]","v":"M. Michel BERTAN\nRue du Champ du Regard\n35300 FOUGÈRES"}]
[{"$f":"Tableau1[[#This Row],[Titre]]&\" \"&Tableau1[[#This Row],[Nom]]&\" \"&Tableau1[[#This Row],[Prénom]]&_xlfn.UNICHAR(10)&Tableau1[[#This Row],[Adresse]]&_xlfn.UNICHAR(10)&Tableau1[[#This Row],[CP]]&\" \"&Tableau1[[#This Row],[Ville]]","v":"M. Claude BANET\n7 rue de la Rivière Dorée\n35300 FOUGÈRES"}]
[{"$f":"Tableau1[[#This Row],[Titre]]&\" \"&Tableau1[[#This Row],[Nom]]&\" \"&Tableau1[[#This Row],[Prénom]]&_xlfn.UNICHAR(10)&Tableau1[[#This Row],[Adresse]]&_xlfn.UNICHAR(10)&Tableau1[[#This Row],[CP]]&\" \"&Tableau1[[#This Row],[Ville]]","v":"Mme Aurélie BLANDIN\n50 A rue Papu\n35300 FOUGÈRES"}]
[{"$f":"Tableau1[[#This Row],[Titre]]&\" \"&Tableau1[[#This Row],[Nom]]&\" \"&Tableau1[[#This Row],[Prénom]]&_xlfn.UNICHAR(10)&Tableau1[[#This Row],[Adresse]]&_xlfn.UNICHAR(10)&Tableau1[[#This Row],[CP]]&\" \"&Tableau1[[#This Row],[Ville]]","v":"M. Arnaud ROISSEL\n5 rue de la Croix Rouge\n35300 FOUGÈRES"}]
[{"$f":"Tableau1[[#This Row],[Titre]]&\" \"&Tableau1[[#This Row],[Nom]]&\" \"&Tableau1[[#This Row],[Prénom]]&_xlfn.UNICHAR(10)&Tableau1[[#This Row],[Adresse]]&_xlfn.UNICHAR(10)&Tableau1[[#This Row],[CP]]&\" \"&Tableau1[[#This Row],[Ville]]","v":"M. Jean BRISSEL\n3 rue de la Mairie\n35300 FOUGÈRES"}]
[{"$f":"Tableau1[[#This Row],[Titre]]&\" \"&Tableau1[[#This Row],[Nom]]&\" \"&Tableau1[[#This Row],[Prénom]]&_xlfn.UNICHAR(10)&Tableau1[[#This Row],[Adresse]]&_xlfn.UNICHAR(10)&Tableau1[[#This Row],[CP]]&\" \"&Tableau1[[#This Row],[Ville]]","v":"Mme Estelle BOTTIN\n22 lotissement les Pins\n35300 FOUGÈRES"}]
[{"$f":"Tableau1[[#This Row],[Titre]]&\" \"&Tableau1[[#This Row],[Nom]]&\" \"&Tableau1[[#This Row],[Prénom]]&_xlfn.UNICHAR(10)&Tableau1[[#This Row],[Adresse]]&_xlfn.UNICHAR(10)&Tableau1[[#This Row],[CP]]&\" \"&Tableau1[[#This Row],[Ville]]","v":"M. Robert BAUFFORT\n12 rue de l’Emeraude\n35300 FOUGÈRES"}]
[{"$f":"Tableau1[[#This Row],[Titre]]&\" \"&Tableau1[[#This Row],[Nom]]&\" \"&Tableau1[[#This Row],[Prénom]]&_xlfn.UNICHAR(10)&Tableau1[[#This Row],[Adresse]]&_xlfn.UNICHAR(10)&Tableau1[[#This Row],[CP]]&\" \"&Tableau1[[#This Row],[Ville]]","v":"M. Hervé OURGES\n4 le Prée\n35300 FOUGÈRES"}]
[{"$f":"Tableau1[[#This Row],[Titre]]&\" \"&Tableau1[[#This Row],[Nom]]&\" \"&Tableau1[[#This Row],[Prénom]]&_xlfn.UNICHAR(10)&Tableau1[[#This Row],[Adresse]]&_xlfn.UNICHAR(10)&Tableau1[[#This Row],[CP]]&\" \"&Tableau1[[#This Row],[Ville]]","v":"Mme Audrey CAILLE\n47 avenue de la Verrerie\n35300 FOUGÈRES"}]
[{"$f":"Tableau1[[#This Row],[Titre]]&\" \"&Tableau1[[#This Row],[Nom]]&\" \"&Tableau1[[#This Row],[Prénom]]&_xlfn.UNICHAR(10)&Tableau1[[#This Row],[Adresse]]&_xlfn.UNICHAR(10)&Tableau1[[#This Row],[CP]]&\" \"&Tableau1[[#This Row],[Ville]]","v":"M. Roméo CHOVEL\n5 rue St Guillaume\n35300 FOUGÈRES"}]
[{"$f":"Tableau1[[#This Row],[Titre]]&\" \"&Tableau1[[#This Row],[Nom]]&\" \"&Tableau1[[#This Row],[Prénom]]&_xlfn.UNICHAR(10)&Tableau1[[#This Row],[Adresse]]&_xlfn.UNICHAR(10)&Tableau1[[#This Row],[CP]]&\" \"&Tableau1[[#This Row],[Ville]]","v":"M. Bernard CHERFBON\n4 résidence Emeraude\n35300 FOUGÈRES"}]
[{"$f":"Tableau1[[#This Row],[Titre]]&\" \"&Tableau1[[#This Row],[Nom]]&\" \"&Tableau1[[#This Row],[Prénom]]&_xlfn.UNICHAR(10)&Tableau1[[#This Row],[Adresse]]&_xlfn.UNICHAR(10)&Tableau1[[#This Row],[CP]]&\" \"&Tableau1[[#This Row],[Ville]]","v":"Mme Léone COUDRE\n5 vallee Charruée\n35300 FOUGÈRES"}]
[{"$f":"Tableau1[[#This Row],[Titre]]&\" \"&Tableau1[[#This Row],[Nom]]&\" \"&Tableau1[[#This Row],[Prénom]]&_xlfn.UNICHAR(10)&Tableau1[[#This Row],[Adresse]]&_xlfn.UNICHAR(10)&Tableau1[[#This Row],[CP]]&\" \"&Tableau1[[#This Row],[Ville]]","v":"M. Gérard COURT\n16 rue Pompéan\n35300 FOUGÈRES"}]
[{"$f":"Tableau1[[#This Row],[Titre]]&\" \"&Tableau1[[#This Row],[Nom]]&\" \"&Tableau1[[#This Row],[Prénom]]&_xlfn.UNICHAR(10)&Tableau1[[#This Row],[Adresse]]&_xlfn.UNICHAR(10)&Tableau1[[#This Row],[CP]]&\" \"&Tableau1[[#This Row],[Ville]]","v":"Mme Louise DANFIN\n3 la Butte\n35300 FOUGÈRES"}]
[{"$f":"Tableau1[[#This Row],[Titre]]&\" \"&Tableau1[[#This Row],[Nom]]&\" \"&Tableau1[[#This Row],[Prénom]]&_xlfn.UNICHAR(10)&Tableau1[[#This Row],[Adresse]]&_xlfn.UNICHAR(10)&Tableau1[[#This Row],[CP]]&\" \"&Tableau1[[#This Row],[Ville]]","v":"M. Louis DALIPON\n101 le Tilleul\n35300 FOUGÈRES"}]
[{"$f":"Tableau1[[#This Row],[Titre]]&\" \"&Tableau1[[#This Row],[Nom]]&\" \"&Tableau1[[#This Row],[Prénom]]&_xlfn.UNICHAR(10)&Tableau1[[#This Row],[Adresse]]&_xlfn.UNICHAR(10)&Tableau1[[#This Row],[CP]]&\" \"&Tableau1[[#This Row],[Ville]]","v":"Mme Pauline DARDO\n7 la Brimandière\n35304 FOUGÈRES"}]
[{"$f":"Tableau1[[#This Row],[Titre]]&\" \"&Tableau1[[#This Row],[Nom]]&\" \"&Tableau1[[#This Row],[Prénom]]&_xlfn.UNICHAR(10)&Tableau1[[#This Row],[Adresse]]&_xlfn.UNICHAR(10)&Tableau1[[#This Row],[CP]]&\" \"&Tableau1[[#This Row],[Ville]]","v":"Mme Pauline DARDO\n8 la Brimandière\n35305 FOUGÈRES"}]
[{"$f":"Tableau1[[#This Row],[Titre]]&\" \"&Tableau1[[#This Row],[Nom]]&\" \"&Tableau1[[#This Row],[Prénom]]&_xlfn.UNICHAR(10)&Tableau1[[#This Row],[Adresse]]&_xlfn.UNICHAR(10)&Tableau1[[#This Row],[CP]]&\" \"&Tableau1[[#This Row],[Ville]]","v":"M. Pierre BREIL\n13 rue des Sabotiers\n35300 FOUGÈRES"}]
[{"$f":"Tableau1[[#This Row],[Titre]]&\" \"&Tableau1[[#This Row],[Nom]]&\" \"&Tableau1[[#This Row],[Prénom]]&_xlfn.UNICHAR(10)&Tableau1[[#This Row],[Adresse]]&_xlfn.UNICHAR(10)&Tableau1[[#This Row],[CP]]&\" \"&Tableau1[[#This Row],[Ville]]","v":"Mme Liliane TOTO\n2 rue des fleurs\n75012 paris"}]
[{"$f":"Tableau1[[#This Row],[Titre]]&\" \"&Tableau1[[#This Row],[Nom]]&\" \"&Tableau1[[#This Row],[Prénom]]&_xlfn.UNICHAR(10)&Tableau1[[#This Row],[Adresse]]&_xlfn.UNICHAR(10)&Tableau1[[#This Row],[CP]]&\" \"&Tableau1[[#This Row],[Ville]]","v":"mme zora BUBU\n\n10000 TROYES"}]
[{"$f":"Tableau1[[#This Row],[Titre]]&\" \"&Tableau1[[#This Row],[Nom]]&\" \"&Tableau1[[#This Row],[Prénom]]&_xlfn.UNICHAR(10)&Tableau1[[#This Row],[Adresse]]&_xlfn.UNICHAR(10)&Tableau1[[#This Row],[CP]]&\" \"&Tableau1[[#This Row],[Ville]]","v":"M. Jean DUPUIS\n3 re des Acacias\n75013 PARIS"}]
[{"$f":"Tableau1[[#This Row],[Titre]]&\" \"&Tableau1[[#This Row],[Nom]]&\" \"&Tableau1[[#This Row],[Prénom]]&_xlfn.UNICHAR(10)&Tableau1[[#This Row],[Adresse]]&_xlfn.UNICHAR(10)&Tableau1[[#This Row],[CP]]&\" \"&Tableau1[[#This Row],[Ville]]","v":"Mme Lise DURAND\n2 rue des fleurs\n75012 PARIS"}]
[{"$f":"Tableau1[[#This Row],[Titre]]&\" \"&Tableau1[[#This Row],[Nom]]&\" \"&Tableau1[[#This Row],[Prénom]]&_xlfn.UNICHAR(10)&Tableau1[[#This Row],[Adresse]]&_xlfn.UNICHAR(10)&Tableau1[[#This Row],[CP]]&\" \"&Tableau1[[#This Row],[Ville]]","v":"Mme Liliane TOTO\n3 rue des fleurs\n75012 PARIS"}]
[{"$f":"Tableau1[[#This Row],[Titre]]&\" \"&Tableau1[[#This Row],[Nom]]&\" \"&Tableau1[[#This Row],[Prénom]]&_xlfn.UNICHAR(10)&Tableau1[[#This Row],[Adresse]]&_xlfn.UNICHAR(10)&Tableau1[[#This Row],[CP]]&\" \"&Tableau1[[#This Row],[Ville]]","v":"mme zora BUBU\n\n10000 TROYES"}]
[{"$f":"Tableau1[[#This Row],[Titre]]&\" \"&Tableau1[[#This Row],[Nom]]&\" \"&Tableau1[[#This Row],[Prénom]]&_xlfn.UNICHAR(10)&Tableau1[[#This Row],[Adresse]]&_xlfn.UNICHAR(10)&Tableau1[[#This Row],[CP]]&\" \"&Tableau1[[#This Row],[Ville]]","v":"M. Jean DUPUIS\n4 re des Acacias\n75012 PARIS"}]
[{"$f":"Tableau1[[#This Row],[Titre]]&\" \"&Tableau1[[#This Row],[Nom]]&\" \"&Tableau1[[#This Row],[Prénom]]&_xlfn.UNICHAR(10)&Tableau1[[#This Row],[Adresse]]&_xlfn.UNICHAR(10)&Tableau1[[#This Row],[CP]]&\" \"&Tableau1[[#This Row],[Ville]]","v":"Mme Lise DURAND\n3 rue des fleurs\n75012 PARIS"}]
[{"$f":"Tableau1[[#This Row],[Titre]]&\" \"&Tableau1[[#This Row],[Nom]]&\" \"&Tableau1[[#This Row],[Prénom]]&_xlfn.UNICHAR(10)&Tableau1[[#This Row],[Adresse]]&_xlfn.UNICHAR(10)&Tableau1[[#This Row],[CP]]&\" \"&Tableau1[[#This Row],[Ville]]","v":"M. John ZZZ\n4 cité des Oiseaux\n75014 PARIS"}]
[{"$f":"Tableau1[[#This Row],[Titre]]&\" \"&Tableau1[[#This Row],[Nom]]&\" \"&Tableau1[[#This Row],[Prénom]]&_xlfn.UNICHAR(10)&Tableau1[[#This Row],[Adresse]]&_xlfn.UNICHAR(10)&Tableau1[[#This Row],[CP]]&\" \"&Tableau1[[#This Row],[Ville]]","v":"M. Marc YYYYY\n4 cité des Oiseaux\n75014 paris"}]
[{"$f":"Tableau1[[#This Row],[Titre]]&\" \"&Tableau1[[#This Row],[Nom]]&\" \"&Tableau1[[#This Row],[Prénom]]&_xlfn.UNICHAR(10)&Tableau1[[#This Row],[Adresse]]&_xlfn.UNICHAR(10)&Tableau1[[#This Row],[CP]]&\" \"&Tableau1[[#This Row],[Ville]]","v":"Mme France ZZZZ\n3 rue des Oiseaux\n75014 PARIS"}]
[{"$f":"Tableau1[[#This Row],[Titre]]&\" \"&Tableau1[[#This Row],[Nom]]&\" \"&Tableau1[[#This Row],[Prénom]]&_xlfn.UNICHAR(10)&Tableau1[[#This Row],[Adresse]]&_xlfn.UNICHAR(10)&Tableau1[[#This Row],[CP]]&\" \"&Tableau1[[#This Row],[Ville]]","v":"M. Marc YYYYY\n5 cité des Oiseaux\n75014 paris"}]
[{"$f":"Tableau1[[#This Row],[Titre]]&\" \"&Tableau1[[#This Row],[Nom]]&\" \"&Tableau1[[#This Row],[Prénom]]&_xlfn.UNICHAR(10)&Tableau1[[#This Row],[Adresse]]&_xlfn.UNICHAR(10)&Tableau1[[#This Row],[CP]]&\" \"&Tableau1[[#This Row],[Ville]]","v":"Mme France ZZZZ\n4 rue des Oiseaux\n75014 PARIS"}]